bitfinex/quotes_ETHUSD_20250115
["timestamp","ask_amount","ask_price","bid_price","bid_amount"]
[1736983071100,1.9359,3427.5,3427.0,5.39]
[1736983071594,1.9359,3427.5,3427.1,3.0]
[1736983072798,2.78928254,3427.3,3426.6,0.798]
[1736983073092,0.7662,3427.2,3426.4,5.39]
[1736983073296,0.7662,3427.2,3426.5,3.0]
[1736983073825,2.78928254,3427.0,3426.5,3.0]
[1736983074204,2.78928254,3426.7,3426.1,0.798]
[1736983074498,2.78928254,3426.7,3425.8,11.08712]
[1736983074866,2.78928254,3426.7,3425.9,3.0]
[1736983075065,0.55,3426.6,3425.8,8.1681]
[1736983075365,0.761,3426.5,3425.9,3.0]
[1736983075701,0.761,3426.0,3425.8,0.57977355]
[1736983075897,0.761,3426.0,3425.3,5.39]
[1736983076104,2.78928254,3425.8,3425.4,0.15235123]
[1736983076784,0.761,3426.0,3425.4,0.15235123]
[1736983076986,3.55028254,3426.0,3425.4,0.15235123]
[1736983077614,3.55028254,3426.0,3425.4,3.15235123]
[1736983078203,0.761,3426.0,3425.4,6.07163123]
[1736983078409,1.871,3426.0,3425.5,0.04089651]
[1736983079297,1.11,3426.0,3425.8,2.91901]
[1736983079633,1.66,3426.0,3425.9,3.04089174]
[1736983080605,1.66,3426.0,3425.9,2.95983174]
[1736983080794,2.77,3426.0,3425.9,2.95983174]
[1736983081198,2.77,3426.0,3425.9,8.34983174]
[1736983081622,2.77,3426.0,3425.9,5.43089174]
[1736983081824,6.32028254,3426.0,3425.9,5.43089174]
[1736983082258,6.32028254,3426.0,3425.9,5.39]
[1736983082534,0.55,3425.9,3425.2,3.0]
[1736983082706,0.55,3425.6,3425.2,3.0]
[1736983082903,0.55,3425.4,3425.1,5.39]
[1736983083099,0.55,3425.4,3425.2,3.0]
[1736983083331,4.44928254,3425.4,3424.8,5.39]
[1736983083634,0.55,3425.0,3424.7,0.0209152]
[1736983083861,3.33928254,3424.8,3424.7,0.0209152]
[1736983085836,4.44928254,3424.8,3424.7,0.0209152]
[1736983086204,4.44928254,3424.8,3424.7,0.0588988]
[1736983086409,5.21028254,3424.8,3424.7,0.0588988]
[1736983086607,6.02328979,3424.8,3424.7,0.0588988]
[1736983088251,10.05315979,3424.8,3424.7,0.0588988]
[1736983089326,10.05315979,3424.8,3424.1,0.625]
[1736983089327,4.23139,3424.2,3424.1,0.625]
[1736983089521,7.02067254,3424.2,3424.1,0.625]
[1736983089720,7.02067254,3424.2,3424.1,0.075]
[1736983089920,8.33538805,3424.2,3424.1,0.075]
[1736983090749,9.44538805,3424.2,3424.1,0.075]
[1736983091051,3.73571551,3424.2,3424.1,0.075]
[1736983091216,2.421,3424.2,3424.1,0.075]
[1736983093262,3.531,3424.2,3424.1,0.075]
[1736983093446,3.531,3424.2,3424.1,0.10479638]
[1736983095402,2.77,3424.2,3424.1,0.10479638]
[1736983095909,3.88,3424.2,3424.1,0.10479638]
[1736983096402,3.33,3424.2,3424.1,11.41526638]
[1736983097208,3.33,3424.2,3424.1,12.18347]
[1736983098217,4.44,3424.2,3424.1,12.18347]
[1736983098418,4.44,3424.2,3424.1,11.38547]
[1736983098557,4.44,3424.2,3424.1,12.18347]
[1736983100294,4.99,3424.2,3424.1,12.18347]
[1736983100707,6.1,3424.2,3424.1,12.18347]
[1736983100913,6.1,3424.2,3424.1,12.21326638]
[1736983102989,7.21,3424.2,3424.1,12.21326638]
[1736983103305,7.21,3424.2,3424.1,8.49479638]
[1736983105533,8.32,3424.2,3424.1,5.49479638]
[1736983108248,9.43,3424.2,3424.1,0.10479638]
[1736983109354,8.88,3424.2,3424.1,3.85506638]
[1736983109647,8.88,3424.2,3424.1,6.78006638]
[1736983109823,9.43,3424.2,3424.1,6.78006638]
[1736983109991,8.88,3424.2,3424.1,6.78006638]
[1736983110633,9.99,3424.2,3424.1,6.78006638]
[1736983111888,8.5298,3424.2,3424.1,6.78006638]
[1736983112091,1.37235129,3424.2,3424.1,20.93006638]
[1736983112229,1.29e-06,3424.2,3424.1,21.27134811]
[1736983113058,2.22,3424.8,3424.7,4.91996]
[1736983113259,2.22,3424.8,3424.7,8.74976]
[1736983113464,2.13733589,3424.8,3424.7,8.74976]
[1736983114877,1.50403589,3424.8,3424.7,3.74976]
[1736983115080,0.55,3424.7,3424.4,3.74319]
[1736983115584,1.66,3424.7,3424.4,3.74319]
[1736983115802,1.66,3424.7,3424.3,2.0]
[1736983115803,2.4765,3424.7,3424.3,2.0]
[1736983116090,2.4765,3424.7,3424.1,5.39]
[1736983116091,2.87455359,3424.7,3424.1,5.39]
[1736983116271,0.55,3424.4,3423.8,2.0]
[1736983117483,0.55,3424.4,3423.6,3.0]
[1736983117649,0.55,3423.9,3423.3,4.92114]
[1736983119080,0.55,3423.9,3423.4,3.0]
[1736983119487,0.55,3423.9,3423.3,5.0]
[1736983120149,1.66,3423.9,3423.3,5.0]
[1736983122503,4.44928254,3423.9,3423.3,3.0]
[1736983122812,0.55,3423.7,3423.3,3.0]
[1736983123113,0.24765,3423.8,3422.8,2.92158]
[1736983123114,0.55,3423.5,3422.8,2.92158]
[1736983123268,0.55,3423.5,3422.7,3.0]
[1736983124147,0.55,3423.5,3422.6,5.39]
[1736983125185,1.66,3423.5,3422.7,3.0]
[1736983125505,2.50343525,3423.5,3422.7,3.0]
[1736983125690,1.66,3423.5,3422.7,3.0]
[1736983126057,1.66,3423.5,3422.7,5.92164]
[1736983126257,1.66,3423.5,3422.8,2.92156]
[1736983126477,1.66,3423.5,3422.7,3.0]
[1736983126714,1.66,3423.5,3422.7,5.92162]
[1736983127216,1.66,3423.5,3422.9,3.0]
[1736983127575,2.77,3423.5,3422.7,3.0]
[1736983127762,2.77,3423.5,3422.8,2.92158]
[1736983127953,2.77,3423.5,3422.9,2.92143]
[1736983128697,2.77,3423.5,3423.1,3.0]
[1736983129191,2.77,3423.5,3422.9,3.0]
[1736983130095,3.88,3423.5,3422.9,3.0]
[1736983131087,3.88,3423.5,3422.9,5.92141]
[1736983132599,4.99,3423.5,3422.9,5.92141]
[1736983132795,4.99,3423.5,3423.1,3.0]
[1736983134304,4.99,3423.5,3422.9,3.0]
[1736983134490,4.99,3423.5,3423.1,2.92132]
[1736983134690,4.44,3423.5,3423.4,5.92107]
[1736983134898,6.1,3423.5,3423.4,5.92107]
[1736983135098,5.55,3423.5,3423.4,5.92107]
[1736983135271,5.54489274,3423.5,3423.4,6.71097]
[1736983135477,5.54489274,3423.5,3423.4,20.86097]
[1736983136472,2.74e-06,3423.5,3423.4,20.86097]
[1736983136676,2.74e-06,3423.5,3423.4,21.23204811]
[1736983136882,2.74e-06,3423.5,3423.4,20.86097]
[1736983137809,1.11000274,3423.5,3423.4,20.86097]
[1736983138713,1.10534533,3423.5,3423.4,20.86097]
[1736983139199,5.33e-06,3423.5,3423.4,20.86097]
[1736983140300,1.11000533,3423.5,3423.4,20.86097]
[1736983141407,5.33e-06,3423.5,3423.4,20.86097]
[1736983142121,2.19507519,3423.9,3423.8,4.92073]
[1736983142484,2.19507519,3423.9,3423.8,7.92073]
[1736983142685,3.30507519,3423.9,3423.8,7.92073]
[1736983144421,1.50403589,3424.8,3424.3,4.9203]
[1736983144593,1.50403589,3424.8,3424.3,7.9203]
[1736983145114,2.22,3424.4,3424.3,7.9203]
[1736983145820,0.75989,3424.4,3424.3,7.9203]
[1736983145988,1.50403589,3424.8,3424.6,11.31004]
[1736983146187,2.32133589,3424.8,3424.6,11.31004]
[1736983147020,1.66,3424.7,3424.6,11.31004]
[1736983147322,1.66,3424.7,3424.6,8.39]
[1736983147485,2.77,3424.7,3424.6,8.39]
[1736983149941,3.88,3424.7,3424.6,8.38632457]
[1736983152543,4.99,3424.7,3424.6,8.38632457]
[1736983154919,6.1,3424.7,3424.6,8.38632457]
[1736983155317,5.55,3424.7,3424.6,11.30636457]
[1736983155509,5.55,3424.7,3424.6,8.38632457]
[1736983155710,6.1,3424.7,3424.6,8.38632457]
[1736983156544,6.94213359,3424.7,3424.1,5.38632457]
[1736983156839,0.55,3424.6,3424.1,5.38632457]
[1736983157039,0.55,3424.6,3424.2,3.0]
[1736983157249,1.66,3424.6,3424.2,3.0]
[1736983157449,0.55,3424.4,3424.1,5.38632457]
[1736983157612,0.55,3424.2,3424.1,5.38632457]
[1736983158019,0.55,3424.2,3424.1,8.38632457]
[1736983159616,1.66,3424.2,3424.1,8.38632457]
[1736983161251,1.66,3424.2,3424.1,11.30679457]
[1736983161840,1.66,3424.2,3424.1,8.38632457]
[1736983162021,2.77,3424.2,3424.1,8.38632457]
[1736983162463,3.6012,3424.2,3424.1,8.38632457]
[1736983162629,2.77,3424.2,3424.1,8.38632457]
[1736983162830,2.22,3424.2,3424.1,12.06459457]
[1736983163260,2.22,3424.2,3424.1,14.06459457]
[1736983163976,2.22,3424.2,3424.1,12.06459457]
[1736983164338,3.33,3424.2,3424.1,13.30679457]
[1736983164669,3.88,3424.2,3424.1,8.38632457]
[1736983165040,3.88,3424.2,3424.1,5.38632457]
[1736983166865,4.99,3424.2,3424.1,5.38632457]
[1736983168845,4.44,3424.2,3424.1,8.38632457]
[1736983169168,5.55,3424.2,3424.1,12.06459457]
[1736983169684,5.54850875,3424.2,3424.1,12.06459457]
[1736983169860,2.62810875,3424.2,3424.1,20.82459457]
[1736983170030,2.62810875,3424.2,3424.1,21.19567268]
[1736983170031,8.75e-06,3424.2,3424.1,21.19567268]
[1736983170356,8.75e-06,3424.2,3424.1,20.82459457]
[1736983170660,8.75e-06,3424.2,3424.1,22.82459457]
[1736983171434,1.11000875,3424.2,3424.1,22.82459457]
[1736983173345,1.10207008,3424.2,3424.1,22.82459457]
[1736983173836,2.21207008,3424.2,3424.1,22.82459457]
[1736983175281,8e-08,3424.2,3424.1,22.82459457]
[1736983176387,1.11000008,3424.2,3424.1,22.82459457]
[1736983177577,1.10560197,3424.2,3424.1,22.82459457]
[1736983178160,1.10428013,3424.2,3424.1,22.82459457]
[1736983178365,6.67e-06,3424.2,3424.1,22.82459457]
[1736983178563,1.11000667,3424.2,3424.1,22.82459457]
[1736983178882,6.67e-06,3424.2,3424.1,22.82459457]
[1736983181295,1.11000667,3424.2,3424.1,22.82459457]
[1736983182556,6.67e-06,3424.2,3424.1,23.19567268]
[1736983182763,6.67e-06,3424.2,3424.1,22.82459457]
[1736983185984,1.11000667,3424.2,3424.1,22.82459457]
[1736983186163,1.11000667,3424.2,3424.1,23.19567268]
[1736983187086,6.67e-06,3424.2,3424.1,23.19567268]
[1736983190780,3.33,3424.7,3424.5,2.0]
[1736983190987,1.11,3425.4,3425.3,22.90127457]
[1736983192183,1.11,3425.4,3425.3,22.06577457]
[1736983192384,1.11,3425.4,3425.3,17.14632457]
[1736983192618,1.66,3425.4,3425.3,5.38632457]
[1736983192987,1.66,3425.4,3425.3,8.38632457]
[1736983193180,1.90917,3425.4,3425.3,5.38632457]
[1736983193407,3.85087,3425.4,3425.3,5.38632457]
[1736983193998,3.85087,3425.4,3425.3,8.38632457]
[1736983195717,4.96087,3425.4,3425.3,8.38632457]
[1736983197417,4.96087,3425.4,3425.3,5.38632457]
[1736983197813,4.1617,3425.4,3425.3,5.38632457]
[1736983198017,3.33,3425.4,3425.3,11.30577457]
[1736983198219,4.44,3425.4,3425.3,11.30577457]
[1736983198542,4.44,3425.4,3425.3,8.38632457]
[1736983199309,4.44,3425.4,3425.3,11.30577457]
[1736983200138,4.44,3425.4,3425.3,8.38632457]
[1736983200846,6.3817,3425.4,3425.3,8.38632457]
[1736983202149,5.55,3425.4,3425.3,8.38632457]
[1736983203267,6.66,3425.4,3425.3,8.38632457]
[1736983204623,6.66,3425.4,3425.3,11.30577457]
[1736983205729,7.77,3425.4,3425.3,20.46212614]
[1736983206549,7.77,3425.4,3425.3,20.06577457]
[1736983208289,8.88,3425.4,3425.3,20.06577457]
[1736983209125,8.88,3425.4,3425.3,21.46787146]
[1736983209447,7.42032,3425.4,3425.3,21.86422303]
[1736983209639,1.5816,3425.4,3425.3,21.86422303]
[1736983209962,1.5816,3425.4,3425.3,21.46787146]
[1736983210340,0.12192,3425.4,3425.3,21.46787146]
[1736983210541,2.22,3426.0,3425.9,19.06526457]
[1736983210764,2.22,3426.0,3425.9,22.88196457]
[1736983213135,3.33,3426.0,3425.9,22.88196457]
[1736983215778,4.44,3426.0,3425.9,22.88196457]
[1736983218192,5.55,3426.0,3425.9,22.88196457]
[1736983219199,5.55,3426.0,3425.9,23.45401008]
[1736983220804,6.66,3426.0,3425.9,23.45401008]
[1736983221926,6.66,3426.0,3425.9,16.14632457]
[1736983222441,6.66,3426.0,3425.9,22.06526457]
[1736983222736,6.66,3426.0,3425.9,17.14632457]
[1736983222942,6.66,3426.0,3425.9,5.38632457]
[1736983223108,7.77,3426.0,3425.9,5.38632457]
[1736983223497,8.6421,3426.0,3425.9,5.38632457]
[1736983224525,8.6421,3426.0,3425.9,10.38632457]
[1736983224724,7.77,3426.0,3425.9,13.30526457]
[1736983225034,7.77,3426.0,3425.9,22.06526457]
[1736983225434,8.88,3426.0,3425.9,22.23226457]
[1736983225739,8.88,3426.0,3425.9,23.04516457]
[1736983225924,1.58285,3426.0,3425.9,23.44151614]
[1736983226805,1.58285,3426.0,3425.9,24.03321277]
[1736983228930,1.11,3426.5,3425.9,9.8868882]
[1736983229135,1.11,3426.5,3426.4,7.91851]
[1736983229751,1.11,3426.5,3426.4,22.87773457]
[1736983231077,1.11,3426.5,3426.4,22.06483457]
[1736983231227,2.22,3426.5,3426.4,22.06483457]
[1736983232636,2.22,3426.5,3426.4,22.121991]
[1736983233731,3.33,3426.5,3426.4,22.121991]
[1736983234125,3.33,3426.5,3426.4,20.121991]
[1736983234332,3.33,3426.5,3426.4,22.121991]
[1736983236260,4.44,3426.5,3426.4,22.121991]
[1736983236837,4.44,3426.5,3426.4,22.984191]
[1736983237934,1.52158,3426.5,3426.4,22.984191]
[1736983238135,1.11,3427.3,3427.2,13.30415457]
[1736983238472,1.11,3427.3,3427.2,13.35875339]
[1736983238629,2.22,3427.3,3427.2,13.35875339]
[1736983239873,2.22,3427.3,3427.2,10.44092339]
[1736983240586,2.77,3427.3,3427.2,10.44092339]
[1736983240741,6.40079711,3427.3,3427.2,10.44092339]
[1736983241160,7.51079711,3427.3,3427.2,10.44092339]
[1736983243588,8.62079711,3427.3,3427.2,10.44092339]
[1736983244577,8.62079711,3427.3,3427.2,7.44092339]
[1736983245888,8.62079711,3427.3,3427.2,5.44092339]
[1736983246190,9.73079711,3427.3,3427.2,5.44092339]
[1736983247196,12.64853711,3427.3,3427.2,0.05459882]
[1736983247490,10.84840482,3427.3,3426.8,2.0]
[1736983247662,9.18079711,3427.3,3427.2,0.05450375]
[1736983247991,0.55,3427.2,3427.0,3.0]
[1736983248582,1.66,3427.2,3427.0,3.0]
[1736983250811,1.66,3427.2,3426.9,5.38632457]
[1736983251016,2.77,3427.2,3427.0,3.0]
[1736983251178,0.55,3427.0,3426.9,5.38632457]
[1736983251516,3.34149711,3427.0,3426.9,5.38632457]
[1736983253017,3.34149711,3427.0,3426.9,5.4410626]
[1736983253381,4.45149711,3427.0,3426.9,5.4410626]
[1736983255087,8.24979711,3427.0,3426.9,0.05473803]
[1736983255284,9.47194682,3427.0,3426.6,2.0]
[1736983255485,0.55,3426.8,3426.6,5.0]
[1736983255791,1.66,3426.8,3426.6,3.0]
[1736983256219,3.34149711,3426.7,3426.6,3.0]
[1736983256516,4.22179711,3426.7,3426.6,3.0]
[1736983256714,3.46834,3426.6,3425.6,0.8384]
[1736983256918,0.55,3426.2,3425.7,2.0]
[1736983257579,0.55,3426.2,3425.6,3.0]
[1736983257781,0.55,3425.8,3425.7,7.38632457]
[1736983258010,1.4303,3425.8,3425.7,5.38632457]
[1736983258213,2.5403,3425.8,3425.7,5.38632457]
[1736983258419,2.5403,3425.8,3425.7,3.0]
[1736983260521,2.5403,3425.8,3425.2,2.0]
[1736983260722,0.55,3425.4,3425.2,2.0]
[1736983261328,1.4303,3425.3,3425.2,2.0]
[1736983261491,0.55,3425.2,3424.8,2.0]
[1736983261691,0.55,3425.2,3424.8,5.0]
[1736983261905,0.55,3425.2,3424.8,2.0]
[1736983262636,3.34149711,3425.2,3424.8,2.0]
[1736983263213,4.45149711,3425.2,3424.8,2.0]
[1736983263408,4.45149711,3425.2,3424.7,3.0]
[1736983263621,4.45149711,3425.2,3424.7,8.38632457]
[1736983263825,1.4303,3424.8,3424.4,2.0]
[1736983264023,3.34149711,3424.5,3424.1,5.38632457]
[1736983264196,0.55,3424.4,3424.1,5.38632457]
[1736983264731,0.55,3424.2,3424.1,5.38632457]
[1736983264925,3.34149711,3424.2,3424.1,8.38632457]
[1736983265129,3.34149711,3424.2,3424.1,3.0]
[1736983265615,4.45149711,3424.2,3424.1,3.0]
[1736983266031,1.66,3424.2,3424.1,5.0]
[1736983266236,1.66,3424.2,3424.1,8.75887]
[1736983266541,1.66,3424.2,3424.1,7.92047]
[1736983267853,1.66,3424.2,3424.1,7.97048094]
[1736983268030,2.77,3424.2,3424.1,7.97048094]
[1736983269713,2.77,3424.2,3424.1,13.35680551]
[1736983270065,2.77,3424.2,3424.1,10.43633551]
[1736983270359,3.6503,3424.2,3424.1,10.43633551]
[1736983270512,4.7603,3424.2,3424.1,10.43633551]
[1736983272948,5.8703,3424.2,3424.1,10.43633551]
[1736983274356,4.99,3424.2,3424.1,10.43633551]
[1736983275427,6.1,3424.2,3424.1,10.43633551]
[1736983276264,5.55,3424.2,3424.1,13.35680551]
[1736983276559,1.11,3425.2,3425.0,2.0]
[1736983276740,1.11,3425.2,3425.0,5.0]
[1736983276934,0.55,3425.1,3425.0,7.9197]
[1736983277164,0.55,3425.1,3425.0,5.0]
[1736983277729,1.66,3425.1,3425.0,5.0]
[1736983279064,1.66,3425.1,3425.0,2.0]
[1736983280128,2.77,3425.1,3425.0,2.0]
[1736983280739,2.77,3425.1,3425.0,7.9197]
[1736983281868,2.77,3425.1,3425.0,13.30602457]
[1736983282446,2.22,3425.1,3425.0,13.30602457]
[1736983282646,3.33,3425.1,3425.0,13.30602457]
[1736983282847,3.33,3425.1,3425.0,13.35520249]
[1736983283883,3.88,3425.1,3425.0,10.43550249]
[1736983284534,4.8093,3425.1,3425.0,5.43550249]
[1736983284871,5.40123,3425.1,3425.0,0.04917792]
[1736983285060,0.9293,3424.9,3424.3,3.0]
[1736983285228,0.55,3424.7,3424.4,0.04944523]
[1736983285432,0.55,3424.7,3424.1,2.625]
[1736983285735,0.55,3424.7,3424.2,0.04958513]
[1736983285930,0.55,3424.7,3424.2,3.04958513]
[1736983286275,0.55,3424.5,3424.2,0.04958513]
[1736983287453,1.66,3424.5,3424.2,3.04958513]
[1736983287860,1.66,3424.5,3424.2,0.04958513]
[1736983288193,5.03096858,3424.5,3424.2,0.04958513]
[1736983288334,0.55,3424.3,3424.2,0.04958513]
[1736983288734,0.55,3424.2,3424.1,0.625]
[1736983288960,3.34149711,3424.2,3424.1,0.625]
[1736983289160,4.27079711,3424.2,3424.1,0.625]
[1736983289358,4.86682397,3424.2,3424.1,0.625]
[1736983289665,7.78721397,3424.2,3424.1,0.625]
[1736983289869,8.89721397,3424.2,3424.1,0.625]
[1736983291028,6.10571686,3424.2,3424.1,0.625]
[1736983292959,7.21571686,3424.2,3424.1,0.625]
[1736983294579,4.29532686,3424.2,3424.1,0.625]
[1736983295232,5.40532686,3424.2,3424.1,0.625]
[1736983296677,8.32571686,3424.2,3424.1,0.625]
[1736983297252,5.40532686,3424.2,3424.1,0.625]
[1736983297769,5.9193,3424.2,3424.1,0.625]
[1736983298175,5.9193,3424.2,3424.1,0.67533163]
[1736983298851,5.9193,3424.2,3424.1,0.625]
[1736983300669,7.0293,3424.2,3424.1,0.625]
[1736983303082,8.1393,3424.2,3424.1,0.625]
[1736983305509,9.2493,3424.2,3424.1,0.625]
[1736983308028,10.3593,3424.2,3424.1,0.625]
[1736983310511,8.88,3424.2,3424.1,0.625]
[1736983310676,9.99,3424.2,3424.1,0.67533163]
[1736983310877,10.54,3424.2,3424.1,0.625]
[1736983311992,10.54,3424.2,3424.1,0.67534813]
[1736983313090,11.65,3424.2,3424.1,0.67534813]
[1736983313693,12.5604,3424.2,3424.1,0.67534813]
[1736983313898,17.41901371,3424.2,3424.1,0.67534813]
[1736983315588,18.52901371,3424.2,3424.1,0.67534813]
[1736983317826,18.52901371,3424.2,3424.1,0.625]
[1736983318030,19.63901371,3424.2,3424.1,0.625]
[1736983320326,20.74901371,3424.2,3424.1,0.625]
[1736983320827,20.91601371,3424.2,3424.1,0.625]
[1736983323325,22.02601371,3424.2,3424.1,0.625]
[1736983325627,23.13601371,3424.2,3424.1,0.625]
[1736983328034,24.24601371,3424.2,3424.1,0.625]
[1736983328692,22.14079,3424.2,3424.1,0.625]
[1736983329031,21.46189711,3424.2,3424.1,0.625]
[1736983329430,20.55149711,3424.2,3424.1,0.625]
[1736983329622,17.76,3424.2,3424.1,1.501]
[1736983330026,17.76,3424.2,3424.1,3.501]
[1736983330202,17.76,3424.2,3424.1,6.4719178]
[1736983330404,18.87,3424.2,3424.1,6.4719178]
[1736983330720,18.87,3424.2,3424.1,11.85824237]
[1736983332929,19.98,3424.2,3424.1,11.85824237]
[1736983333319,19.98,3424.2,3424.1,14.85824237]
[1736983333823,19.98,3424.2,3424.1,23.61824237]
[1736983335338,21.09,3424.2,3424.1,23.61824237]
[1736983336139,21.09,3424.2,3424.1,17.69777237]
[1736983336439,21.64,3424.2,3424.1,15.69777237]
[1736983337721,22.75,3424.2,3424.1,15.69777237]
[1736983338646,22.75,3424.2,3424.1,1.5514478]
[1736983339013,22.75,3424.2,3424.1,0.6754478]
[1736983340248,23.86,3424.2,3424.1,0.6754478]
[1736983340453,23.86,3424.2,3424.1,0.0504478]
[1736983340980,0.55,3424.1,3423.9,2.00870679]
[1736983341312,0.8918,3424.0,3423.9,0.00870679]
[1736983341707,1.4418,3424.0,3423.9,0.00870679]
[1736983341936,3.18219598,3424.0,3423.9,0.00870679]
[1736983342309,6.10275598,3424.0,3423.9,0.00870679]
[1736983342513,7.21275598,3424.0,3423.9,0.00870679]
[1736983345061,8.32275598,3424.0,3423.9,0.00870679]
[1736983347729,9.43275598,3424.0,3423.9,0.00870679]
[1736983348838,4.2218,3424.0,3423.9,0.00870679]
[1736983349027,3.33,3424.0,3423.9,0.00870679]
[1736983349230,3.33,3424.0,3423.9,3.87384679]
[1736983349532,3.33,3424.0,3423.9,12.31018702]
[1736983350088,4.44,3424.0,3423.9,12.31018702]
[1736983352344,5.55,3424.0,3423.9,12.31018702]
[1736983354765,6.66,3424.0,3423.9,12.31018702]
[1736983355274,0.81888,3424.0,3423.9,12.31018702]
[1736983355588,23.31,3424.2,3424.1,23.00629457]
[1736983356096,23.31,3424.2,3424.1,23.05550106]
[1736983357154,24.42,3424.2,3424.1,23.05550106]
[1736983358499,24.42,3424.2,3424.1,21.05550106]
[1736983358694,24.42,3424.2,3424.1,20.05550106]
[1736983359573,24.42,3424.2,3424.1,7.43553106]
[1736983359816,25.53,3424.2,3424.1,7.43553106]
[1736983362293,26.64,3424.2,3424.1,7.43553106]
[1736983363598,26.64,3424.2,3424.1,10.35600106]
[1736983364785,27.75,3424.2,3424.1,10.35600106]
[1736983365181,27.75,3424.2,3424.1,8.35600106]
[1736983365798,27.75,3424.2,3424.1,5.43553106]
[1736983367310,28.86,3424.2,3424.1,5.43553106]
[1736983369835,29.97,3424.2,3424.1,5.43553106]
[1736983372134,31.08,3424.2,3424.1,5.43553106]
[1736983374521,32.19,3424.2,3424.1,5.43553106]
[1736983376245,32.19,3424.2,3424.1,10.35600106]
[1736983376430,24.889,3424.2,3424.1,23.00830106]
[1736983376639,24.889,3424.2,3424.1,26.1782174]
[1736983376834,24.34853217,3424.2,3424.1,26.1782174]
[1736983377147,23.59033217,3424.2,3424.1,26.1782174]
[1736983377321,17.49823219,3424.2,3424.1,26.1782174]
[1736983378243,14.39617816,3424.2,3424.1,26.1782174]
[1736983378646,8.55537816,3424.2,3424.1,26.1782174]
[1736983379265,7.09517816,3424.2,3424.1,26.1782174]
[1736983379473,2.36437816,3424.2,3424.1,26.1782174]
[1736983380654,2.36437816,3424.2,3424.1,25.79979817]
[1736983380849,8.16e-06,3424.2,3424.1,25.79979817]
[1736983381067,8.16e-06,3424.2,3424.1,26.1782174]
[1736983381450,8.16e-06,3424.5,3424.4,5.92021]
[1736983381623,8.16e-06,3424.5,3424.4,9.60400711]
[1736983381830,8.16e-06,3424.5,3424.4,9.65284145]
[1736983382637,8.16e-06,3424.5,3424.4,21.38608814]
[1736983382844,1.11,3425.2,3425.0,8.812]
[1736983383164,1.11,3425.2,3425.0,23.00586415]
[1736983383326,1.11,3425.2,3425.0,25.79736126]
[1736983383327,1e-05,3425.1,3425.0,25.79736126]
[1736983383929,1e-05,3425.2,3425.1,14.14632457]
[1736983384157,1e-05,3425.2,3425.1,17.95824457]
[1736983384331,1.11001,3425.2,3425.1,18.0059226]
[1736983384663,1.11001,3425.2,3425.1,20.0059226]
[1736983384841,1e-05,3425.2,3425.1,20.0059226]
[1736983386363,1e-05,3425.2,3425.1,20.88434183]
[1736983388369,2.22,3425.8,3425.7,4.91911]
[1736983388578,2.22,3425.8,3425.7,5.81141]
[1736983388737,2.22,3425.8,3425.7,5.85831594]
[1736983389370,3.33,3425.8,3425.7,5.85831594]
[1736983389570,3.33,3425.8,3425.7,20.00464051]
[1736983391867,4.44,3425.8,3425.7,20.00464051]
[1736983393680,4.44,3425.8,3425.7,23.00464051]
[1736983394247,5.55,3425.8,3425.7,23.00464051]
[1736983394447,5.55,3425.8,3425.7,23.59452699]
[1736983396378,1.9999,3427.0,3426.7,7.38632457]
[1736983396679,1.9999,3427.0,3426.7,10.30457457]
[1736983396848,2.22,3426.8,3426.7,10.34999593]
[1736983399357,3.33,3426.8,3426.7,10.34999593]
[1736983400582,3.33,3426.8,3426.7,10.9352035]
[1736983401900,4.44,3426.8,3426.7,10.9352035]
[1736983404303,5.55,3426.8,3426.7,10.9352035]
[1736983406065,5.55,3426.8,3426.7,22.6952035]
[1736983406597,6.66,3426.8,3426.7,22.6952035]
[1736983407001,6.66,3426.8,3426.7,23.8623215]
[1736983407170,6.66,3426.8,3426.7,24.7878215]
[1736983407768,6.66,3426.8,3426.7,23.8623215]
[1736983409163,7.77,3426.8,3426.7,23.8623215]
[1736983410067,7.77,3426.8,3426.7,24.7878215]
[1736983411937,8.88,3426.8,3426.7,24.7878215]
[1736983413417,1.58455,3426.8,3426.7,25.16624073]
[1736983413610,1.58455,3426.8,3426.7,27.95773784]
[1736983414142,0.12546,3426.8,3426.7,27.95773784]
[1736983414317,1.11,3427.0,3426.9,2.91808]
[1736983414843,1.11,3427.0,3426.9,5.96243393]
[1736983416523,1.11,3427.0,3426.9,20.1087585]
[1736983416728,2.22,3427.0,3426.9,20.1087585]
[1736983416916,2.22,3427.0,3426.9,21.0541585]
[1736983417426,1.96304,3427.3,3427.2,18.09172457]
[1736983417601,1.82804,3427.3,3427.2,24.3902156]
[1736983418239,1.82804,3427.3,3427.2,26.3902156]
[1736983418915,1.82804,3427.3,3427.2,23.22029926]
[1736983419115,2.93804,3427.3,3427.2,23.22029926]
[1736983420619,2.93804,3427.3,3427.2,22.27489926]
[1736983420818,2.93804,3427.3,3427.2,22.10789926]
[1736983421542,4.04804,3427.3,3427.2,22.10789926]
[1736983424010,5.15804,3427.3,3427.2,22.10789926]
[1736983427049,6.26804,3427.3,3427.2,22.10789926]
[1736983429308,7.37804,3427.3,3427.2,22.10789926]
[1736983431843,8.48804,3427.3,3427.2,22.10789926]
[1736983432049,9.50204,3427.3,3427.2,7.43006926]
[1736983432409,10.05204,3427.3,3427.2,7.43006926]
[1736983432843,9.50204,3427.3,3427.2,7.43006926]
[1736983434245,9.50204,3427.3,3427.2,10.34789926]
[1736983434451,10.61204,3427.3,3427.2,10.34789926]
[1736983434648,10.61204,3427.3,3427.2,7.43006926]